fUST/lending_fUST_20260329
["ID","MTS","AMOUNT","RATE_DAILY","PERIOD"]
[419032486,1774789569253,-150.77917332,0.00035227,120]
[419032487,1774789569281,-150.7791733,0.00035227,120]
[419032488,1774789569309,-235.2223434,0.00035227,120]
[419032489,1774789569338,-150.14886585,0.00035227,120]
[419032490,1774789569367,-150.14886585,0.00035227,120]
[419032491,1774789569395,-150.14886585,0.00035227,120]
[419032492,1774789569423,-150.14886585,0.00035227,120]
[419032493,1774789569451,-150.14886585,0.00035227,120]
[419032494,1774789569479,-150.14886585,0.00035227,120]
[419032495,1774789569506,-150.14886585,0.00035227,120]
[419032496,1774789569534,-205.32541479,0.00035227,120]
[419032497,1774789569562,-282.92560966,0.00035227,120]
[419032498,1774789569590,-282.92560966,0.00035227,120]
[419032499,1774789569617,-282.92560966,0.00035227,120]
[419032500,1774789569646,-282.92560966,0.00035227,120]
[419032501,1774789569673,-282.92560966,0.00035227,120]
[419032502,1774789569701,-282.92560966,0.00035227,120]
[419032503,1774789569730,-282.92560966,0.00035227,120]
[419032504,1774789569757,-282.92560966,0.00035227,120]
[419032505,1774789569786,-156.44355875,0.00035227,120]
[419032506,1774789569814,-156.44355875,0.00035227,120]
[419032507,1774789569841,-156.44355875,0.00035227,120]
[419032508,1774789569870,-156.44355875,0.00035227,120]
[419032509,1774789569898,-156.44355875,0.00035227,120]
[419032510,1774789569927,-156.44355875,0.00035227,120]
[419032511,1774789569955,-156.44355875,0.00035227,120]
[419032512,1774789569983,-156.44355875,0.00035227,120]
[419032513,1774789570012,-194.53688473,0.00035227,110]
[419032514,1774789570045,-261.65846756,0.00035227,120]
[419032515,1774789570073,-173.28,0.00035227,120]
[419032516,1774789570102,-158.50003589,0.00035227,120]
[419032517,1774789570140,-239.71555848,0.00035227,120]
[419032518,1774789570177,-158.50003589,0.00035227,120]
[419032519,1774789570216,-158.50003589,0.00035227,120]
[419032520,1774789570254,-158.50003589,0.00035227,120]
[419032521,1774789570289,-158.50003589,0.00035227,120]
[419032522,1774789570326,-158.50003589,0.00035227,120]
[419032523,1774789570362,-158.50003589,0.00035227,120]
[419032524,1774789570398,-158.50003589,0.00035227,120]
[419032525,1774789570430,-100314.48394475,0.00035227,33]
[419032526,1774789570470,-303.19639848,0.00035227,120]
[419032527,1774789570511,-303.19639848,0.00035227,120]
[419032528,1774789570551,-303.19639848,0.00035227,120]
[419032529,1774789570586,-303.19639848,0.00035227,120]
[419032530,1774789570621,-303.19639848,0.00035227,120]
[419032531,1774789570657,-303.19639848,0.00035227,120]
[419032532,1774789570697,-303.19639848,0.00035227,120]
[419032533,1774789570732,-151.59819923,0.00035227,120]
[419032534,1774789570770,-151.59819922,0.00035227,120]
[419032535,1774789570804,-280.04868764,0.00035227,120]
[419032536,1774789570840,-155.66776966,0.00035227,120]
[419032537,1774789570874,-166.76581527,0.00035227,120]
[419032538,1774789570908,-218.29497258,0.00035227,120]
[419032539,1774789570945,-280.04868764,0.00035227,120]
[419032540,1774789570979,-155.66776966,0.00035227,120]
[419032541,1774789571013,-166.76581527,0.00035227,120]
[419032542,1774789571047,-280.04868764,0.00035227,120]
[419032543,1774789571081,-155.66776966,0.00035227,120]
[419032544,1774789571115,-280.04868764,0.00035227,120]
[419032545,1774789571150,-280.04868764,0.00035227,120]
[419032546,1774789571184,-280.04868764,0.00035227,120]
[419032547,1774789571218,-280.04868764,0.00035227,120]
[419032548,1774789571252,-280.04868764,0.00035227,120]
[419032549,1774789571285,-218.29497257,0.00035227,120]
[419032550,1774789571317,-631.54197903,0.00035227,120]
[419032551,1774789571349,-172.1700628,0.00035227,120]
[419032552,1774789571382,-163.08901923,0.00035227,120]
[419032553,1774789571542,-230.3292898,0.00035227,120]
[419032554,1774789571571,-333.64077623,0.00035227,120]
[419032555,1774789571600,-181.78908117,0.00035227,120]
[419032556,1774789571631,-230.3292898,0.00035227,120]
[419032557,1774789571661,-333.64077623,0.00035227,120]
[419032558,1774789571689,-181.78908117,0.00035227,120]
[419032559,1774789571719,-230.3292898,0.00035227,120]
[419032560,1774789571747,-333.64077623,0.00035227,120]
[419032561,1774789571776,-181.78908117,0.00035227,120]
[419032562,1774789571806,-333.64077623,0.00035227,120]
[419032563,1774789571835,-181.78908117,0.00035227,120]
[419032564,1774789571865,-181.78908117,0.00035227,120]
[419032565,1774789571893,-333.64077623,0.00035227,120]
[419032566,1774789571923,-181.78908117,0.00035227,120]
[419032567,1774789571952,-333.64077623,0.00035227,120]
[419032568,1774789571982,-181.78908117,0.00035227,120]
[419032569,1774789572012,-333.64077623,0.00035227,120]
[419032570,1774789572041,-333.64077623,0.00035227,120]
[419032571,1774789572071,-333.64077623,0.00035227,120]
[419032572,1774789572100,-333.64077623,0.00035227,120]
[419032573,1774789572130,-333.64077623,0.00035227,120]
[419032574,1774789572160,-333.64077623,0.00035227,120]
[419032575,1774789572191,-333.64077623,0.00035227,120]
[419032576,1774789572220,-333.64077623,0.00035227,120]
[419032577,1774789572249,-333.64077623,0.00035227,120]
[419032578,1774789572278,-181.78908113,0.00035227,120]
[419032579,1774789572305,-7001.52000006,0.00035227,60]
[419032580,1774789572335,-312.05134725,0.00035227,120]
[419032581,1774789572364,-215.96070201,0.00035227,120]
[419032582,1774789572394,-312.05134725,0.00035227,120]
[419032583,1774789572425,-471.09676703,0.00035227,120]
[419032584,1774789572454,-157.21380755,0.00035227,120]
[419032585,1774789572483,-176.55500928,0.00035227,120]
[419032586,1774789572510,-229.24590739,0.00035227,120]
[419032587,1774789572537,-159.56245058,0.00035227,110]
[419032588,1774789572568,-157.21380755,0.00035227,120]
[419032589,1774789572600,-471.09676703,0.00035227,120]
[419032590,1774789572630,-176.55500928,0.00035227,120]
[419032591,1774789572659,-159.56245058,0.00035227,110]
[419032592,1774789572690,-229.24590739,0.00035227,120]
[419032593,1774789572721,-157.21380755,0.00035227,120]
[419032594,1774789572753,-229.24590739,0.00035227,120]
[419032595,1774789572782,-471.09676703,0.00035227,120]
[419032596,1774789572808,-159.56245058,0.00035227,110]
[419032597,1774789572836,-229.24590739,0.00035227,120]
[419032598,1774789572863,-157.21380755,0.00035227,120]
[419032599,1774789572891,-471.09676703,0.00035227,120]
[419032600,1774789572921,-157.21380755,0.00035227,120]
[419032601,1774789572950,-471.09676703,0.00035227,120]
[419032602,1774789572979,-229.24590739,0.00035227,120]
[419032603,1774789573007,-157.21380755,0.00035227,120]
[419032604,1774789573037,-471.09676703,0.00035227,120]
[419032605,1774789573066,-229.24590739,0.00035227,120]
[419032606,1774789573097,-471.09676703,0.00035227,120]
[419032607,1774789573126,-229.24590739,0.00035227,120]
[419032608,1774789573156,-471.09676703,0.00035227,120]
[419032609,1774789573190,-229.24590739,0.00035227,120]
[419032610,1774789573223,-471.09676703,0.00035227,120]
[419032611,1774789573253,-229.24590739,0.00035227,120]
[419032612,1774789573283,-229.24590739,0.00035227,120]
[419032613,1774789573312,-471.09676703,0.00035227,120]
[419032614,1774789573340,-471.09676703,0.00035227,120]
[419032615,1774789573371,-229.24590739,0.00035227,120]
[419032616,1774789573407,-471.09676703,0.00035227,120]
[419032617,1774789573439,-229.24590739,0.00035227,120]
[419032618,1774789573470,-471.09676703,0.00035227,120]
[419032619,1774789573499,-229.24590739,0.00035227,120]
[419032620,1774789573530,-471.09676703,0.00035227,120]
[419032621,1774789573560,-229.24590739,0.00035227,120]
[419032622,1774789573590,-229.24590739,0.00035227,120]
[419032623,1774789573618,-157.21380752,0.00035227,120]
[419032624,1774789573647,-157.03225566,0.00035227,120]
[419032625,1774789573677,-157.03225566,0.00035227,120]
[419032626,1774789573707,-157.03225565,0.00035227,120]
[419032627,1774789573739,-500.0,0.00035227,30]
[419032628,1774789573767,-500.0,0.00035227,30]
[419032629,1774789573795,-150.88154649,0.00035227,30]
[419032630,1774789573824,-1000.0,0.00035227,30]
[419032631,1774789573851,-1000.0,0.00035227,30]
[419032632,1774789573974,-1000.0,0.00035227,30]
[419032633,1774789574002,-1000.0,0.00035227,30]
[419032634,1774789574031,-1000.0,0.00035227,30]
[419032635,1774789574060,-1738.989441,0.00035227,30]
[419032636,1774789601015,-350.34735365,0.00019402,30]
[419032637,1774789601049,-325.17070286,0.0001955,30]
[419032638,1774789601080,-261.65846756,0.00019575,30]
[419032639,1774789601113,-350.34735365,0.00019925,30]
[419032640,1774789601146,-350.34735365,0.00020447,30]
[419032641,1774789601177,-325.17070286,0.00020744,30]
[419032642,1774789601207,-350.34735365,0.00020969,60]
[419032643,1774789601241,-350.34735365,0.00021492,60]
[419032644,1774789601283,-325.17070286,0.00021938,60]
[419032645,1774789601320,-194.53688473,0.00021968,30]
[419032646,1774789601350,-261.65846756,0.00021968,60]
[419032647,1774789601393,-350.34735365,0.00022014,60]
[419032648,1774789601425,-350.34735365,0.00022536,60]
[419032649,1774789601457,-162.58535139,0.00022703,120]
[419032650,1774789601490,-350.34735365,0.00023059,60]
[419032651,1774789601520,-325.17070286,0.00023131,60]
[419032652,1774789601550,-175.17367676,0.00023332,120]
[419032653,1774789601579,-350.34735365,0.00023581,60]
[419032654,1774789601607,-12744.1762363,0.0002395,120]
[419032655,1774789601634,-152.11907015,0.00024067,60]
[419032656,1774789601663,-350.34735365,0.00024103,120]
[419032657,1774789601693,-325.17070286,0.00024325,60]
[419032658,1774789601723,-194.53688473,0.00024362,30]
[419032659,1774789601751,-261.65846756,0.00024362,60]
[419032660,1774789601787,-221.18133945,0.00024416,60]
[419032661,1774789601817,-350.34735365,0.00024626,120]
[419032662,1774789601851,-152.83408036,0.00024664,120]
[419032663,1774789601886,-73793.01615241,0.00025,30]
[419032664,1774789601912,-171.98744337,0.00025,120]
[419032665,1774789601943,-308.69960812,0.00025079,120]
[419032666,1774789601988,-325.17070286,0.00025519,120]
[419032667,1774789602017,-155.9892544,0.00026,30]
[419032668,1774789602049,-1000.0,0.00026431,30]
[419032669,1774789602080,-492.0,0.00026431,30]
[419032670,1774789602109,-206.0380112,0.00026756,120]
[419032671,1774789602137,-194.53688473,0.00026756,60]
[419032672,1774789602166,-261.65846756,0.00026756,120]
[419032673,1774789602196,-186.2866135,0.00027,120]
[419032674,1774789602224,-160.63242482,0.0002738,120]
[419032675,1774789602252,-234.51,0.00027394,30]
[419032676,1774789602286,-20000.0,0.00028,30]
[419032677,1774789602315,-364.0,0.000284,120]
[419032678,1774789602344,-294.97512377,0.000285,120]
[419032679,1774789602373,-173.0,0.00028586,30]
[419032680,1774789602401,-158.0,0.00028613,30]
[419032681,1774789602429,-157.0,0.00028613,30]
[419032682,1774789602458,-162.89520256,0.00028613,30]
[419032683,1774789602488,-171.94640963,0.0002876,120]
[419032684,1774789602517,-1444.0,0.00029041,120]
[419032685,1774789602645,-1000.0,0.00029075,30]
[419032686,1774789602676,-791.0,0.00029075,30]
[419032687,1774789602706,-177.139616,0.00029497,60]
[419032688,1774789602736,-173.0,0.00029586,30]
[419032689,1774789602767,-158.0,0.00029613,30]
[419032690,1774789602796,-157.0,0.00029613,30]
[419032691,1774789602824,-224.13643461,0.0003,120]
[419032692,1774789602853,-520.80166781,0.0003,30]
[419032693,1774789602882,-500.0,0.0003,120]
[419032694,1774789602914,-127085.0,0.0003,30]
[419032695,1774789602942,-20085.09884765,0.0003,120]
[419032696,1774789602972,-732.65133674,0.0003013,120]
[419032697,1774789603001,-150.6595,0.00030137,120]
[419032698,1774789603040,-173.0,0.00030586,30]
[419032699,1774789603074,-158.0,0.00030613,30]
[419032700,1774789603110,-157.0,0.00030613,30]
[419032701,1774789603141,-1154.0,0.000309,120]
[419032702,1774789603173,-278.79227557,0.00031,120]
[419032703,1774789603206,-300.0,0.000314,120]
[419032704,1774789603237,-173.0,0.00031586,30]
[419032705,1774789603268,-158.0,0.00031613,30]
[419032706,1774789603299,-157.0,0.00031613,30]
[419032707,1774789603330,-157.0,0.00031836,49]
[419032708,1774789603360,-1154.0,0.000319,120]
[419032709,1774789603393,-1000.0,0.00031982,30]
[419032710,1774789603426,-1000.0,0.00031982,30]
[419032711,1774789603458,-500.0,0.00032,120]
[419032712,1774789603490,-173.0,0.00032586,30]
[419032713,1774789603520,-369.0,0.000326,120]
[419032714,1774789603552,-158.0,0.00032613,30]
[419032715,1774789603583,-157.0,0.00032613,30]
[419032716,1774789603614,-283.93761106,0.000327,30]
[419032717,1774789603645,-225.25142845,0.000327,30]
[419032718,1774789603673,-226.857,0.000327,30]
[419032719,1774789603704,-295.5236,0.000327,30]
[419032720,1774789603735,-999.0,0.00032876,120]
[419032721,1774789603764,-1000.0,0.000329,120]
[419032722,1774789603793,-1154.0,0.000329,120]
[419032723,1774789603825,-350.53,0.00032917,60]
[419032724,1774789603854,-153.82920167,0.00033,120]
[419032725,1774789603884,-18974.76342833,0.00033,30]
[419032726,1774789603916,-300.0,0.00033,120]
[419032727,1774789603949,-350.53,0.00033017,60]
[419032728,1774789603982,-366.16,0.00033017,60]
[419032729,1774789604017,-376.3,0.00033092,60]
[419032730,1774789604050,-350.53,0.00033117,60]
[419032731,1774789604083,-366.16,0.00033117,60]
[419032732,1774789604116,-999.0,0.0003315,120]
[419032733,1774789604149,-376.3,0.00033192,60]
[419032734,1774789604179,-1000.0,0.000332,120]
[419032735,1774789604209,-331.03023637,0.000332,117]
[419032736,1774789604239,-331.03023637,0.000332,117]
[419032737,1774789604269,-331.03023637,0.000332,117]
[419032738,1774789604298,-331.03023637,0.000332,117]
[419032739,1774789604328,-331.03023637,0.000332,117]
[419032740,1774789604361,-350.53,0.00033217,60]
[419032741,1774789604393,-366.16,0.00033217,60]
[419032742,1774789604424,-376.3,0.00033292,60]
[419032743,1774789604455,-2500.0,0.000333,120]
[419032744,1774789604485,-217.97,0.000333,120]
[419032745,1774789604517,-350.53,0.00033317,60]
[419032746,1774789604547,-366.16,0.00033317,60]
[419032747,1774789604579,-376.3,0.00033392,60]
[419032748,1774789604611,-350.53,0.00033417,60]
[419032749,1774789604643,-366.16,0.00033417,60]
[419032750,1774789604673,-999.0,0.00033424,120]
[419032751,1774789604705,-376.3,0.00033492,60]
[419032752,1774789604734,-1000.0,0.000335,120]
[419032753,1774789604765,-350.53,0.00033517,60]
[419032754,1774789604798,-366.16,0.00033517,60]
[419032755,1774789604828,-173.0,0.00033586,30]
[419032756,1774789604859,-376.3,0.00033592,60]
[419032757,1774789604889,-158.0,0.00033613,30]
[419032758,1774789604918,-157.0,0.00033613,30]
[419032759,1774789604949,-350.53,0.00033617,60]
[419032760,1774789604979,-366.16,0.00033617,60]
[419032761,1774789605009,-376.3,0.00033692,60]
[419032762,1774789605039,-999.0,0.00033698,120]
[419032763,1774789605070,-350.53,0.00033717,60]
[419032764,1774789605225,-366.16,0.00033717,60]
[419032765,1774789605255,-3185.47218778,0.00033788,60]
[419032766,1774789605288,-376.3,0.00033792,60]
[419032767,1774789605318,-1000.0,0.000338,120]
[419032768,1774789605349,-2625.0,0.000338,120]
[419032769,1774789605378,-228.87,0.000338,120]
[419032770,1774789605410,-350.53,0.00033817,60]
[419032771,1774789605441,-366.16,0.00033817,60]
[419032772,1774789605472,-376.3,0.00033892,60]
[419032773,1774789605502,-1154.0,0.000339,120]
[419032774,1774789605533,-350.53,0.00033917,60]
[419032775,1774789605565,-366.16,0.00033917,60]
[419032776,1774789605596,-999.0,0.00033972,120]
[419032777,1774789605626,-407.23923185,0.00033973,120]
[419032778,1774789605658,-376.4635,0.00033992,60]
[419032779,1774789605688,-500.0,0.00034,120]
[419032780,1774789605720,-350.53,0.00034017,60]
[419032781,1774789605751,-366.16,0.00034017,60]
[419032782,1774789605779,-1000.0,0.000341,120]
[419032783,1774789605810,-350.53,0.00034117,60]
[419032784,1774789605841,-366.16,0.00034117,60]
[419032785,1774789605871,-350.53,0.00034217,60]
[419032786,1774789605904,-366.16,0.00034217,60]
[419032787,1774789605935,-999.0,0.00034246,120]
[419032788,1774789605964,-2756.25,0.000343,120]
[419032789,1774789605995,-350.53,0.00034317,60]
[419032790,1774789606032,-366.16,0.00034317,60]
[419032791,1774789606062,-1032.3554,0.00034356,120]
[419032792,1774789606090,-1000.0,0.00034356,100]
[419032793,1774789606120,-1000.0,0.00034356,120]
[419032794,1774789606150,-1000.0,0.00034356,120]
[419032795,1774789606178,-1000.0,0.000344,120]
[419032796,1774789606211,-350.53,0.00034417,60]
[419032797,1774789606242,-366.16,0.00034417,60]
[419032798,1774789606271,-1870924.1951,0.0003444,30]
[419032799,1774789606302,-350.53,0.00034517,60]
[419032800,1774789606334,-366.16,0.00034517,60]
[419032801,1774789606366,-999.0,0.0003452,120]
[419032802,1774789606395,-173.0,0.00034586,30]
[419032803,1774789606426,-158.0,0.00034613,30]
[419032804,1774789606455,-157.0,0.00034613,30]
[419032805,1774789606488,-350.53,0.00034617,60]
[419032806,1774789606519,-366.16,0.00034617,60]
[419032807,1774789606549,-1000.0,0.000347,120]
[419032808,1774789606581,-350.53,0.00034717,60]
[419032809,1774789606612,-366.16,0.00034717,60]
[419032810,1774789606644,-999.0,0.00034794,120]
[419032811,1774789606673,-2894.06,0.000348,120]
[419032812,1774789606701,-1477.548,0.000348,30]
[419032813,1774789606731,-1477.54,0.000348,30]
[419032814,1774789606763,-350.53,0.00034817,60]
[419032815,1774789606795,-366.16,0.00034817,60]
[419032816,1774789606824,-1154.0,0.000349,120]
[419032817,1774789606856,-350.53,0.00034917,60]
[419032818,1774789606888,-366.16,0.00034917,60]
[419032819,1774789606917,-456.60103137,0.00035,120]
[419032820,1774789606945,-1000.0,0.00035,120]
[419032821,1774789606974,-518.7108068,0.00035,120]
[419032822,1774789607010,-12545.0,0.00035,120]
[419032823,1774789607055,-9232.0,0.00035,120]
[419032824,1774789607118,-400.0,0.00035,120]
[419032825,1774789607155,-169.0,0.00035,120]
[419032826,1774789607188,-350.53,0.00035017,60]
[419032827,1774789607229,-366.16,0.00035017,60]
[419032828,1774789607291,-999.0,0.00035068,120]
[419032829,1774789607339,-350.53,0.00035117,60]
[419032830,1774789607400,-366.16,0.00035117,60]
[419032831,1774789607453,-173.0,0.00035172,120]
[419032832,1774789607490,-1000.0,0.0003518,30]
[419032833,1774789607525,-1000.0,0.0003518,30]
[419032834,1774789607576,-579.0,0.0003518,30]
[419032835,1774789607620,-722.1671,0.000352,120]
[419032836,1774789607663,-350.53,0.00035217,60]
[419032837,1774789607698,-366.16,0.00035217,60]
[419032838,1774789607737,-339.007,0.00035223,30]
[419032839,1774789607794,-158.0,0.00035227,120]
[419032840,1774789607825,-157.0,0.00035227,120]
[419032841,1774789607976,-162.0,0.00035227,120]
[419032842,1774789608009,-740.0,0.00035227,30]
[419032843,1774789608040,-566.0,0.00035227,30]
[419032844,1774789608071,-1285.0,0.00035227,30]
[419032845,1774789608112,-282.17449729,0.00035248,120]
[419032846,1774789608142,-1000.0,0.000353,120]
[419032847,1774789608173,-3038.76,0.000353,120]
[419032848,1774789608205,-350.53,0.00035317,60]
[419032849,1774789608236,-366.16,0.00035317,60]
[419032850,1774789608269,-999.0,0.00035342,120]
[419032851,1774789608299,-292.1,0.000354,60]
[419032852,1774789608329,-500.658,0.000354,120]
[419032853,1774789608362,-350.78875085,0.00035417,60]
[419032854,1774789608395,-366.16,0.00035417,60]
[419032855,1774789608426,-169.0,0.000355,120]
[419032856,1774789608460,-366.16,0.00035517,60]
[419032857,1774789608491,-1000.0,0.000356,120]
[419032858,1774789608523,-999.0,0.00035616,120]
[419032859,1774789608552,-166.88513824,0.00035616,30]
[419032860,1774789608584,-366.16,0.00035617,60]
[419032861,1774789608616,-366.16,0.00035717,60]
[419032862,1774789608645,-3190.7,0.000358,120]
[419032863,1774789608678,-366.16,0.00035817,60]
[419032864,1774789608709,-999.0,0.0003589,120]
[419032865,1774789608739,-1000.0,0.000359,120]
[419032866,1774789608772,-1154.0,0.000359,120]
[419032867,1774789608803,-169.0,0.000359,120]
[419032868,1774789608835,-366.16,0.00035917,60]
[419032869,1774789608863,-3721.5099243,0.00036,120]
[419032870,1774789608893,-500.0,0.00036,120]
[419032871,1774789608924,-366.16,0.00036017,60]
[419032872,1774789608956,-366.16,0.00036117,60]
[419032873,1774789608987,-999.0,0.00036164,120]
[419032874,1774789609016,-173.0,0.00036172,120]
[419032875,1774789609046,-1000.0,0.000362,120]
[419032876,1774789609078,-366.16,0.00036217,60]
[419032877,1774789609109,-158.0,0.00036227,120]
[419032878,1774789609138,-157.0,0.00036227,120]
[419032879,1774789609166,-162.0,0.00036227,120]
[419032880,1774789609194,-482.32,0.000363,120]
[419032881,1774789609226,-366.16,0.00036317,60]
[419032882,1774789609257,-169.0,0.000364,120]
[419032883,1774789609289,-366.16,0.00036417,60]
[419032884,1774789609321,-999.0,0.00036438,120]
[419032885,1774789609351,-705159.1529,0.0003644,30]
[419032886,1774789609383,-1000.0,0.000365,120]
[419032887,1774789609415,-366.16,0.00036517,60]
[419032888,1774789609446,-366.16,0.00036617,60]
[419032889,1774789609480,-999.0,0.00036712,120]
[419032890,1774789609512,-366.16,0.00036717,60]
[419032891,1774789609540,-1000.0,0.000368,120]
[419032892,1774789609569,-366.16,0.00036817,60]
[419032893,1774789609599,-1154.0,0.000369,120]
[419032894,1774789609627,-1897.77,0.000369,60]
[419032895,1774789609658,-2286.3892,0.000369,120]
[419032896,1774789609689,-169.0,0.000369,120]
[419032897,1774789609721,-366.16,0.00036917,60]
[419032898,1774789609752,-999.0,0.00036986,120]
[419032899,1774789609782,-400.0,0.00037,120]
[419032900,1774789609813,-366.33931639,0.00037017,60]
[419032901,1774789609842,-1000.0,0.000371,120]
[419032902,1774789609872,-173.0,0.00037172,120]
[419032903,1774789609902,-158.0,0.00037227,120]
[419032904,1774789609932,-157.0,0.00037227,120]
[419032905,1774789609961,-162.0,0.00037227,120]
[419032906,1774789609992,-999.0,0.0003726,120]
[419032907,1774789610025,-169.0,0.000373,120]
[419032908,1774789610059,-179.81963458,0.000374,120]
[419032909,1774789610090,-1000.0,0.000374,120]
[419032910,1774789610121,-433681.2473,0.00037444,30]
[419032911,1774789610154,-999.0,0.00037534,120]
[419032912,1774789610185,-1000.0,0.000377,120]
[419032913,1774789610217,-169.0,0.000378,120]
[419032914,1774789610254,-999.0,0.00037808,120]
[419032915,1774789610381,-1154.0,0.000379,120]
[419032916,1774789610413,-1000.0,0.00038,120]
[419032917,1774789610447,-500.0,0.00038,120]
[419032918,1774789610477,-1000.0,0.00038,120]
[419032919,1774789610508,-167.03516399,0.00038,120]
[419032920,1774789610543,-999.0,0.00038082,120]
[419032921,1774789610573,-173.0,0.00038172,120]
[419032922,1774789610605,-169.0,0.000382,120]
[419032923,1774789610636,-158.0,0.00038227,120]
[419032924,1774789610667,-157.0,0.00038227,120]
[419032925,1774789610698,-162.0,0.00038227,120]
[419032926,1774789610729,-1000.0,0.000383,120]
[419032927,1774789610763,-999.0,0.00038356,120]
[419032928,1774789610793,-1008.7738,0.00038356,120]
[419032929,1774789610823,-1600.34336505,0.000384,120]
[419032930,1774789610852,-705.68441242,0.000384,120]
[419032931,1774789610881,-178.44112702,0.000384,120]
[419032932,1774789610912,-208.07874962,0.000384,120]
[419032933,1774789610942,-310.26102083,0.000384,120]
[419032934,1774789610971,-807.81708131,0.000384,120]
[419032935,1774789611002,-1271.10805839,0.000384,120]
[419032936,1774789611033,-246.75815477,0.000384,120]
[419032937,1774789611064,-572.59157803,0.000384,120]
[419032938,1774789611093,-192.63469776,0.000384,120]
[419032939,1774789611123,-397.93825012,0.000384,120]
[419032940,1774789611153,-815.23626291,0.000384,120]
[419032941,1774789611183,-1000.0,0.000386,120]
[419032942,1774789611216,-999.0,0.0003863,120]
[419032943,1774789611248,-1000.0,0.00038698,60]
[419032944,1774789611277,-1000.0,0.00038698,60]
[419032945,1774789611311,-1000.0,0.00038698,60]
[419032946,1774789611342,-169.0,0.000387,120]
[419032947,1774789611374,-1000.0,0.000389,120]
[419032948,1774789611406,-1154.0,0.000389,120]
[419032949,1774789611439,-3588.35271009,0.000389,30]
[419032950,1774789611473,-999.0,0.00038904,120]
[419032951,1774789611505,-373.8078,0.00039,30]
[419032952,1774789611536,-300.0,0.00039,120]
[419032953,1774789611567,-1000.0,0.00039,30]
[419032954,1774789611599,-173.0,0.00039172,120]
[419032955,1774789611631,-999.0,0.00039178,120]
[419032956,1774789611661,-1000.0,0.000392,120]
[419032957,1774789611691,-169.0,0.000392,120]
[419032958,1774789611721,-158.0,0.00039227,120]
[419032959,1774789611751,-157.0,0.00039227,120]
[419032960,1774789611781,-162.0,0.00039227,120]
[419032961,1774789611810,-362.58,0.000394,120]
[419032962,1774789611841,-999.0,0.00039452,120]
[419032963,1774789611872,-1000.0,0.000395,120]
[419032964,1774789611901,-1600.34336505,0.000395,120]
[419032965,1774789611932,-705.68441242,0.000395,120]
[419032966,1774789611961,-178.44112702,0.000395,120]
[419032967,1774789611991,-310.26102083,0.000395,120]
[419032968,1774789612022,-807.81708131,0.000395,120]
[419032969,1774789612053,-1271.10805839,0.000395,120]
[419032970,1774789612085,-246.75815477,0.000395,120]
[419032971,1774789612115,-572.59157803,0.000395,120]
[419032972,1774789612148,-192.63469776,0.000395,120]
[419032973,1774789612181,-397.93825012,0.000395,120]
[419032974,1774789612214,-815.23626291,0.000395,120]
[419032975,1774789612247,-169.0,0.000396,120]
[419032976,1774789612282,-742.98449649,0.00039726,120]
[419032977,1774789612316,-1113.15834108,0.000398,120]
[419032978,1774789612349,-1154.0,0.000399,120]
[419032979,1774789612394,-5000.0,0.0004,120]
[419032980,1774789612428,-1148.79183381,0.0004,30]
[419032981,1774789612460,-9814.08805446,0.0004,120]
[419032982,1774789612492,-872.0,0.0004,120]
[419032983,1774789612524,-1000.0,0.0004,120]
[419032984,1774789612557,-500.0,0.0004,120]
[419032985,1774789612594,-1482606.57825412,0.0004,120]